fUST/lending_fUST_20251213
["ID","MTS","AMOUNT","RATE_DAILY","PERIOD"]
[398363239,1765558987177,-500.0,0.00041369,120]
[398363240,1765558987214,-598.87,0.00041369,120]
[398363241,1765558987251,-656.63,0.00041369,120]
[398363242,1765558987287,-612.94,0.00041369,120]
[398363243,1765558987322,-540.31,0.00041369,120]
[398363244,1765558987359,-6116.92,0.00041369,120]
[398363245,1765558987395,-500.0,0.00041369,120]
[398363246,1765558987430,-500.0,0.00041369,120]
[398363247,1765558987464,-500.0,0.00041369,120]
[398363248,1765558987498,-500.0,0.00041369,120]
[398363249,1765558987533,-500.0,0.00041369,120]
[398363250,1765558987570,-500.0,0.00041369,120]
[398363251,1765558987606,-500.0,0.00041369,120]
[398363252,1765558987644,-500.0,0.00041369,120]
[398363253,1765558987693,-500.0,0.00041369,120]
[398363254,1765558987736,-500.0,0.00041369,120]
[398363255,1765558987774,-1254.82,0.00041369,120]
[398363256,1765558987810,-500.72317923,0.00041369,120]
[398363257,1765558987845,-727.42,0.00041369,120]
[398363258,1765558987879,-500.0,0.00041369,120]
[398363259,1765558987915,-1353.24,0.00041369,120]
[398363260,1765558987949,-500.0,0.00041369,120]
[398363261,1765558987984,-1002.15,0.00041369,120]
[398363262,1765558988020,-500.0,0.00041369,120]
[398363263,1765558988058,-500.30603221,0.00041369,120]
[398363264,1765558988096,-500.0,0.00041369,120]
[398363265,1765558988136,-500.0,0.00041369,120]
[398363266,1765558988174,-500.0,0.00041369,120]
[398363267,1765558988211,-500.0,0.00041369,120]
[398363268,1765558988249,-500.0,0.00041369,120]
[398363269,1765558988287,-4051.53,0.00041369,120]
[398363270,1765558988328,-500.0,0.00041369,120]
[398363271,1765558988370,-500.0,0.00041369,120]
[398363272,1765558988411,-502.32277361,0.00041369,120]
[398363273,1765558988449,-500.0,0.00041369,120]
[398363274,1765558988486,-500.0,0.00041369,120]
[398363275,1765558988522,-500.0,0.00041369,120]
[398363276,1765558988558,-1370.61,0.00041369,120]
[398363277,1765558988594,-500.0,0.00041369,120]
[398363278,1765558988631,-500.0,0.00041369,120]
[398363279,1765558988819,-500.0,0.00041369,120]
[398363280,1765558988865,-500.0,0.00041369,120]
[398363281,1765558988904,-500.0,0.00041369,120]
[398363282,1765558988940,-500.0,0.00041369,120]
[398363283,1765558988976,-502.50256781,0.00041369,120]
[398363284,1765558989013,-500.0,0.00041369,120]
[398363285,1765558989051,-500.0,0.00041369,120]
[398363286,1765558989086,-503.14915392,0.00041369,60]
[398363287,1765558989121,-4792.62,0.00041369,120]
[398363288,1765558989157,-528.15,0.00041369,120]
[398363289,1765558989192,-500.0,0.00041369,120]
[398363290,1765558989226,-882.96,0.00041369,120]
[398363291,1765558989261,-500.0,0.00041369,120]
[398363292,1765558989294,-3042.53,0.00041369,120]
[398363293,1765558989329,-500.0,0.00041369,120]
[398363294,1765558989364,-724.15,0.00041369,120]
[398363295,1765558989399,-500.0,0.00041369,120]
[398363296,1765558989433,-1140.1,0.00041369,120]
[398363297,1765558989467,-500.0,0.00041369,120]
[398363298,1765558989502,-500.0,0.00041369,120]
[398363299,1765558989538,-500.0,0.00041369,120]
[398363300,1765558989573,-500.0,0.00041369,120]
[398363301,1765558989610,-500.0,0.00041369,120]
[398363302,1765558989645,-1070.21,0.00041369,120]
[398363303,1765558989679,-500.0,0.00041369,120]
[398363304,1765558989713,-1540.11,0.00041369,120]
[398363305,1765558989749,-3766.38,0.00041369,120]
[398363306,1765558989781,-500.0,0.00041369,120]
[398363307,1765558989814,-506.14215183,0.00041369,120]
[398363308,1765558989849,-517.69,0.00041369,120]
[398363309,1765558989885,-500.0,0.00041369,120]
[398363310,1765558989920,-500.0,0.00041369,60]
[398363311,1765558989954,-500.0,0.00041369,120]
[398363312,1765558989988,-500.0,0.00041369,120]
[398363313,1765558990021,-500.0,0.00041369,120]
[398363314,1765558990054,-500.0,0.00041369,120]
[398363315,1765558990089,-500.0,0.00041369,120]
[398363316,1765558990121,-500.0,0.00041369,120]
[398363317,1765558990158,-665.47,0.00041369,120]
[398363318,1765558990193,-642.33,0.00041369,120]
[398363319,1765558990229,-2396.38,0.00041369,120]
[398363320,1765558990267,-500.0,0.00041369,120]
[398363321,1765558990301,-500.0,0.00041369,120]
[398363322,1765558990336,-500.0,0.00041369,120]
[398363323,1765558990373,-6822.47,0.00041369,120]
[398363324,1765558990410,-737.24,0.00041369,120]
[398363325,1765558990446,-1104.83,0.00041369,120]
[398363326,1765558990481,-500.0,0.00041369,120]
[398363327,1765558990515,-500.0,0.00041369,120]
[398363328,1765558990550,-500.0,0.00041369,120]
[398363329,1765558990589,-500.0,0.00041369,120]
[398363330,1765558990625,-500.0,0.00041369,120]
[398363331,1765558990661,-747.76,0.00041369,120]
[398363332,1765558990695,-500.0,0.00041369,120]
[398363333,1765558990730,-500.0,0.00041369,120]
[398363334,1765558990764,-501.69348723,0.00041369,120]
[398363335,1765558990797,-500.0,0.00041369,120]
[398363336,1765558990830,-500.0,0.00041369,120]
[398363337,1765558990863,-500.0,0.00041369,120]
[398363338,1765558990896,-711.97,0.00041369,120]
[398363339,1765558990930,-529.57,0.00041369,120]
[398363340,1765558990963,-500.0,0.00041369,120]
[398363341,1765558990996,-8509.4,0.00041369,120]
[398363342,1765558991030,-500.0,0.00041369,120]
[398363343,1765558991062,-1295.86,0.00041369,120]
[398363344,1765558991096,-500.0,0.00041369,120]
[398363345,1765558991129,-500.0,0.00041369,120]
[398363346,1765558991163,-500.0,0.00041369,120]
[398363347,1765558991196,-500.0,0.00041369,120]
[398363348,1765558991228,-500.0,0.00041369,120]
[398363349,1765558991259,-500.0,0.00041369,120]
[398363350,1765558991292,-500.0,0.00041369,120]
[398363351,1765558991324,-500.0,0.00041369,120]
[398363352,1765558991359,-3869.1,0.00041369,120]
[398363353,1765558991394,-821.88,0.00041369,120]
[398363354,1765558991429,-977.51,0.00041369,120]
[398363355,1765558991462,-2102.78,0.00041369,120]
[398363356,1765558991495,-757.37,0.00041369,120]
[398363357,1765558991528,-1091.49,0.00041369,30]
[398363358,1765558991561,-500.0,0.00041369,120]
[398363359,1765558991594,-500.0,0.00041369,120]
[398363360,1765558991627,-2193.68,0.00041369,120]
[398363361,1765558991662,-262.59,0.00041369,120]
[398363362,1765558991697,-462.32615705,0.00041369,120]
[398363363,1765558991741,-500.0,0.00041369,30]
[398363364,1765558991784,-2995.42,0.00041369,120]
[398363365,1765558991825,-877.47,0.00041369,120]
[398363366,1765558991862,-500.0,0.00041369,120]
[398363367,1765558991897,-500.0,0.00041369,120]
[398363368,1765558991932,-878.07,0.00041369,120]
[398363369,1765558991968,-503.30071407,0.00041369,120]
[398363370,1765558992003,-500.0,0.00041369,120]
[398363371,1765558992040,-500.0,0.00041369,120]
[398363372,1765558992079,-500.0,0.00041369,120]
[398363373,1765558992120,-1473.95,0.00041369,120]
[398363374,1765558992318,-1886.97,0.00041369,120]
[398363375,1765558992359,-1507.92,0.00041369,120]
[398363376,1765558992402,-500.0,0.00041369,120]
[398363377,1765558992445,-558.94,0.00041369,120]
[398363378,1765558992489,-520.89592378,0.00041369,120]
[398363379,1765558992533,-1266.98,0.00041369,120]
[398363380,1765558992577,-500.0,0.0004137,120]
[398363381,1765558992619,-447.0,0.0004137,90]
[398363382,1765558992667,-263.0,0.000414,120]
[398363383,1765558992712,-1500.0,0.000416,38]
[398363384,1765558992760,-1300.0,0.00041643,60]
[398363385,1765558992803,-6062.91,0.00041643,120]
[398363386,1765558992849,-1252.44645609,0.00041643,60]
[398363387,1765558992893,-500.0,0.00041643,120]
[398363388,1765558992936,-501.14660841,0.00041643,120]
[398363389,1765558992981,-500.0,0.00041643,120]
[398363390,1765558993027,-627.10067586,0.00041643,120]
[398363391,1765558993075,-500.0,0.00041643,120]
[398363392,1765558993122,-861.06,0.00041643,120]
[398363393,1765558993170,-500.0,0.00041643,120]
[398363394,1765558993215,-500.0,0.00041643,120]
[398363395,1765558993260,-500.0,0.00041643,120]
[398363396,1765558993305,-572.78,0.00041643,120]
[398363397,1765558993353,-736.94,0.00041643,120]
[398363398,1765558993402,-500.0,0.00041643,120]
[398363399,1765558993451,-500.0,0.00041643,120]
[398363400,1765558993499,-718.57,0.00041643,120]
[398363401,1765558993547,-500.0,0.00041643,120]
[398363402,1765558993593,-500.0,0.00041643,120]
[398363403,1765558993641,-979.57,0.00041643,120]
[398363404,1765558993697,-500.0,0.00041643,120]
[398363405,1765558993753,-500.0,0.00041643,120]
[398363406,1765558993802,-500.0,0.00041643,120]
[398363407,1765558993849,-500.0,0.00041643,120]
[398363408,1765558993897,-500.0,0.00041643,120]
[398363409,1765558993944,-500.0,0.00041643,120]
[398363410,1765558993991,-500.0,0.00041643,120]
[398363411,1765558994038,-500.0,0.00041643,120]
[398363412,1765558994085,-500.0,0.00041643,120]
[398363413,1765558994131,-500.0,0.00041643,120]
[398363414,1765558994183,-500.0,0.00041643,120]
[398363415,1765558994234,-500.0,0.00041643,120]
[398363416,1765558994285,-500.0,0.00041643,120]
[398363417,1765558994336,-623.41119979,0.00041643,120]
[398363418,1765558994390,-500.0,0.00041643,120]
[398363419,1765558994441,-500.8384442,0.00041643,120]
[398363420,1765558994498,-500.0,0.00041643,120]
[398363421,1765558994551,-500.0,0.00041643,120]
[398363422,1765558994602,-500.82947074,0.00041643,60]
[398363423,1765558994654,-500.0,0.00041643,120]
[398363424,1765558994702,-500.986659,0.00041643,120]
[398363425,1765558994750,-776.11,0.00041643,120]
[398363426,1765558994799,-500.0,0.00041643,120]
[398363427,1765558994848,-500.0,0.00041643,120]
[398363428,1765558994897,-500.0,0.00041643,120]
[398363429,1765558994946,-500.0,0.00041643,120]
[398363430,1765558994994,-500.0,0.00041643,120]
[398363431,1765558995043,-500.0,0.00041643,120]
[398363432,1765558995091,-500.0,0.00041643,120]
[398363433,1765558995140,-500.0,0.00041643,120]
[398363434,1765558995191,-500.0,0.00041643,120]
[398363435,1765558995244,-500.0,0.00041643,120]
[398363436,1765558995294,-500.0,0.00041643,120]
[398363437,1765558995343,-500.0,0.00041643,120]
[398363438,1765558995393,-501.64188362,0.00041643,120]
[398363439,1765558995449,-500.0,0.00041643,120]
[398363440,1765558995508,-500.0,0.00041643,120]
[398363441,1765558995562,-500.0,0.00041643,120]
[398363442,1765558995624,-888.02,0.00041643,120]
[398363443,1765558995686,-500.0,0.00041643,120]
[398363444,1765558995745,-500.0,0.00041643,120]
[398363445,1765558995803,-500.0,0.00041643,120]
[398363446,1765558995858,-809.03,0.00041643,120]
[398363447,1765558995910,-500.0,0.00041643,120]
[398363448,1765558995967,-500.0,0.00041643,120]
[398363449,1765558996017,-502.22227251,0.00041643,120]
[398363450,1765558996066,-500.0,0.00041643,120]
[398363451,1765558996125,-500.0,0.00041643,120]
[398363452,1765558996185,-525.95,0.00041643,120]
[398363453,1765558996250,-500.0,0.00041643,120]
[398363454,1765558996311,-501.21717671,0.00041643,120]
[398363455,1765558996371,-500.0,0.00041643,120]
[398363456,1765558996435,-500.0,0.00041643,120]
[398363457,1765558996489,-503.35878457,0.00041643,120]
[398363458,1765558996544,-500.0,0.00041643,120]
[398363459,1765558996601,-500.0,0.00041643,120]
[398363460,1765558996657,-501.2203098,0.00041643,120]
[398363461,1765558996708,-500.0,0.00041643,120]
[398363462,1765558996761,-467.2304829,0.00041643,120]
[398363463,1765558996816,-501.34476896,0.00041643,120]
[398363464,1765558996870,-500.0,0.00041643,120]
[398363465,1765558996928,-500.0,0.00041643,120]
[398363466,1765558996980,-544.55,0.00041643,120]
[398363467,1765558997039,-500.0,0.00041643,120]
[398363468,1765558997271,-500.0,0.00041643,120]
[398363469,1765558997334,-918.87,0.00041643,120]
[398363470,1765558997395,-500.0,0.00041643,120]
[398363471,1765558997454,-792.62,0.00041643,120]
[398363472,1765558997513,-500.0,0.00041643,120]
[398363473,1765558997573,-500.0,0.00041643,120]
[398363474,1765558997633,-500.0,0.00041643,120]
[398363475,1765558997695,-501.31888761,0.00041643,120]
[398363476,1765558997748,-523.24,0.00041643,120]
[398363477,1765558997797,-500.0,0.00041643,120]
[398363478,1765558997849,-500.0,0.00041643,60]
[398363479,1765558997902,-500.0,0.00041643,120]
[398363480,1765558997955,-1249.97,0.00041643,120]
[398363481,1765558998005,-500.0,0.00041643,120]
[398363482,1765558998053,-501.43430828,0.00041643,120]
[398363483,1765558998107,-500.0,0.00041643,120]
[398363484,1765558998160,-1147.67,0.00041643,120]
[398363485,1765558998213,-500.0,0.00041643,120]
[398363486,1765558998263,-891.27,0.00041643,120]
[398363487,1765558998315,-500.0,0.00041643,120]
[398363488,1765558998365,-500.0,0.00041643,120]
[398363489,1765558998423,-500.0,0.00041643,120]
[398363490,1765558998482,-560.86,0.00041643,120]
[398363491,1765558998540,-500.0,0.00041643,120]
[398363492,1765558998595,-500.0,0.00041643,120]
[398363493,1765558998657,-500.0,0.00041643,120]
[398363494,1765558998718,-621.52,0.00041643,120]
[398363495,1765558998774,-942.7,0.00041643,120]
[398363496,1765558998825,-1290.09,0.00041643,120]
[398363497,1765558998886,-500.0,0.00041643,120]
[398363498,1765558998951,-500.0,0.00041643,120]
[398363499,1765558999021,-518.91,0.00041643,120]
[398363500,1765558999098,-500.0,0.00041643,120]
[398363501,1765558999178,-1799.3,0.00041643,120]
[398363502,1765558999246,-500.0,0.00041643,120]
[398363503,1765558999308,-420.23782232,0.00041643,120]
[398363504,1765558999364,-501.31792209,0.00041643,120]
[398363505,1765558999419,-500.0,0.00041643,120]
[398363506,1765558999471,-500.0,0.00041643,120]
[398363507,1765558999540,-500.0,0.00041643,120]
[398363508,1765558999600,-864.65,0.00041643,120]
[398363509,1765558999659,-500.0,0.00041643,120]
[398363510,1765558999719,-500.0,0.00041643,90]
[398363511,1765558999788,-500.0,0.00041643,120]
[398363512,1765558999846,-1500.0,0.00041643,120]
[398363513,1765558999905,-500.0,0.00041643,120]
[398363514,1765558999963,-500.0,0.00041643,120]
[398363515,1765559000021,-1851.43,0.00041643,120]
[398363516,1765559000078,-500.38,0.00041643,120]
[398363517,1765559000135,-500.0,0.00041643,120]
[398363518,1765559000195,-308.69368646,0.00041643,120]
[398363519,1765559000250,-500.0,0.00041643,120]
[398363520,1765559000307,-725.76,0.00041643,120]
[398363521,1765559000359,-828.36,0.00041643,120]
[398363522,1765559000406,-500.0,0.00041643,120]
[398363523,1765559000452,-500.0,0.00041643,120]
[398363524,1765559000501,-500.0,0.00041643,120]
[398363525,1765559000547,-500.0,0.00041643,120]
[398363526,1765559000593,-500.0,0.00041643,120]
[398363527,1765559000643,-525.21,0.00041643,120]
[398363528,1765559000689,-500.0,0.00041643,120]
[398363529,1765559000738,-500.0,0.00041643,120]
[398363530,1765559000783,-557.79,0.00041643,120]
[398363531,1765559000827,-500.0,0.00041643,120]
[398363532,1765559000869,-500.0,0.00041643,120]
[398363533,1765559000913,-500.0,0.00041643,120]
[398363534,1765559000956,-500.0,0.00041643,120]
[398363535,1765559000999,-500.0,0.00041643,120]
[398363536,1765559001042,-281.44876825,0.00041643,120]
[398363537,1765559001084,-500.0,0.00041643,120]
[398363538,1765559001125,-500.0,0.00041643,120]
[398363539,1765559001166,-586.47,0.00041643,120]
[398363540,1765559001204,-500.0,0.00041643,120]
[398363541,1765559001243,-588.77,0.00041643,120]
[398363542,1765559001279,-500.0,0.00041643,120]
[398363543,1765559001317,-500.0,0.00041643,120]
[398363544,1765559001356,-500.75445058,0.00041643,120]
[398363545,1765559001394,-500.0,0.00041643,120]
[398363546,1765559001432,-500.0,0.00041643,120]
[398363547,1765559001469,-500.0,0.00041643,120]
[398363548,1765559001504,-500.0,0.00041643,120]
[398363549,1765559001541,-510.67,0.00041643,120]
[398363550,1765559001578,-500.0,0.00041643,120]
[398363551,1765559001614,-500.0,0.00041643,120]
[398363552,1765559001651,-500.0,0.00041643,120]
[398363553,1765559001686,-2040.87,0.00041643,120]
[398363554,1765559001721,-500.0,0.00041643,120]
[398363555,1765559001757,-500.0,0.00041643,120]
[398363556,1765559001792,-628.67,0.00041643,120]
[398363557,1765559001825,-500.0,0.00041643,120]
[398363558,1765559001860,-1077.12,0.00041643,120]
[398363559,1765559001895,-500.0,0.00041643,120]
[398363560,1765559001928,-501.61921174,0.00041643,120]
[398363561,1765559001963,-500.0,0.00041643,120]
[398363562,1765559001999,-500.0,0.00041643,120]
[398363563,1765559002216,-721.84,0.00041643,120]
[398363564,1765559002256,-500.0,0.00041643,120]
[398363565,1765559002297,-500.0,0.00041643,120]
[398363566,1765559002337,-500.0,0.00041643,120]
[398363567,1765559002379,-500.0,0.00041643,120]
[398363568,1765559002428,-501.62838088,0.00041643,30]
[398363569,1765559002477,-500.0,0.00041643,120]
[398363570,1765559002522,-929.97,0.00041643,120]
[398363571,1765559002563,-500.0,0.00041643,120]
[398363572,1765559002603,-500.0,0.00041643,120]
[398363573,1765559002645,-862.33,0.00041643,120]
[398363574,1765559002682,-500.0,0.00041643,120]
[398363575,1765559002719,-633.36,0.00041643,120]
[398363576,1765559002760,-919.84,0.00041643,120]
[398363577,1765559002798,-500.0,0.00041643,120]
[398363578,1765559002833,-500.0,0.00041643,120]
[398363579,1765559002870,-500.0,0.00041643,120]
[398363580,1765559002905,-578.76,0.00041643,120]
[398363581,1765559002942,-1045.84,0.00041643,30]
[398363582,1765559002980,-500.0,0.00041643,120]
[398363583,1765559003018,-500.0,0.00041643,120]
[398363584,1765559003056,-500.0,0.00041643,120]
[398363585,1765559003095,-932.03,0.00041643,120]
[398363586,1765559003133,-500.0,0.00041643,120]
[398363587,1765559003172,-549.96,0.00041643,120]
[398363588,1765559003211,-500.0,0.00041643,120]
[398363589,1765559003250,-500.0,0.00041643,120]
[398363590,1765559003291,-958.01,0.00041643,120]
[398363591,1765559003330,-500.0,0.00041643,120]
[398363592,1765559003368,-500.0,0.00041643,120]
[398363593,1765559003413,-500.0,0.00041643,120]
[398363594,1765559003459,-813.54,0.00041643,120]
[398363595,1765559003504,-500.0,0.00041643,120]
[398363596,1765559003541,-500.0,0.00041643,120]
[398363597,1765559003580,-500.0,0.00041643,120]
[398363598,1765559003621,-652.93,0.00041643,120]
[398363599,1765559003660,-620.84,0.00041643,120]
[398363600,1765559003695,-304.19992913,0.00041643,120]
[398363601,1765559003729,-1013.55,0.00041643,120]
[398363602,1765559003769,-630.98,0.00041643,120]
[398363603,1765559003804,-293.18047692,0.00041643,120]
[398363604,1765559003842,-548.16,0.00041643,120]
[398363605,1765559003877,-514.00569255,0.00041643,120]
[398363606,1765559003912,-500.0,0.00041643,120]
[398363607,1765559003946,-504.46651045,0.00041643,120]
[398363608,1765559003983,-500.0,0.00041643,120]
[398363609,1765559004022,-697.09,0.00041643,120]
[398363610,1765559004058,-1179.79,0.00041643,120]
[398363611,1765559004097,-501.74834729,0.00041643,120]
[398363612,1765559004138,-500.0,0.00041643,120]
[398363613,1765559004182,-500.2025301,0.00041643,120]
[398363614,1765559004225,-1837.39,0.00041643,120]
[398363615,1765559004266,-500.0,0.00041643,120]
[398363616,1765559004304,-1962.36,0.00041643,120]
[398363617,1765559004342,-1872.12,0.00041643,30]
[398363618,1765559004378,-1714.27,0.00041643,120]
[398363619,1765559004415,-501.08594519,0.00041643,120]
[398363620,1765559004453,-500.0,0.00041643,120]
[398363621,1765559004489,-770.95,0.00041643,120]
[398363622,1765559004524,-1605.92,0.00041643,120]
[398363623,1765559004558,-500.0,0.00041643,120]
[398363624,1765559004594,-553.77,0.00041643,120]
[398363625,1765559004628,-1671.089372,0.00041643,120]
[398363626,1765559004663,-500.0,0.00041643,120]
[398363627,1765559004696,-500.0,0.00041643,120]
[398363628,1765559004729,-500.0,0.00041643,120]
[398363629,1765559004771,-715.37,0.00041643,120]
[398363630,1765559004806,-639.0,0.00041643,30]
[398363631,1765559004840,-502.88,0.00041643,120]
[398363632,1765559004875,-500.0,0.00041643,120]
[398363633,1765559004910,-500.0,0.00041643,120]
[398363634,1765559004943,-500.0,0.00041643,120]
[398363635,1765559004983,-500.0,0.00041643,120]
[398363636,1765559005021,-508.28,0.00041643,120]
[398363637,1765559005057,-500.0,0.00041643,120]
[398363638,1765559005092,-500.0,0.00041643,120]
[398363639,1765559005127,-500.0,0.00041643,120]
[398363640,1765559005162,-500.0,0.00041643,120]
[398363641,1765559005196,-500.0,0.00041643,120]
[398363642,1765559005230,-500.0,0.00041643,120]
[398363643,1765559005263,-502.16052759,0.00041643,120]
[398363644,1765559005298,-500.0,0.00041643,120]
[398363645,1765559005334,-500.0,0.00041643,120]
[398363646,1765559005373,-963.45,0.00041643,120]
[398363647,1765559005410,-500.0,0.00041643,120]
[398363648,1765559005447,-501.59530907,0.00041643,120]
[398363649,1765559005482,-500.0,0.00041643,120]
[398363650,1765559005517,-500.0,0.00041643,120]
[398363651,1765559005554,-865.79,0.00041643,120]
[398363652,1765559005588,-500.0,0.00041643,120]
[398363653,1765559005623,-2977.42,0.00041643,120]
[398363654,1765559005663,-500.0,0.00041643,120]
[398363655,1765559005699,-500.0,0.00041643,120]
[398363656,1765559005733,-502.80853395,0.00041643,120]
[398363657,1765559005772,-1656.54,0.00041643,120]
[398363658,1765559005969,-500.0,0.00041643,120]
[398363659,1765559006007,-605.78,0.00041643,120]
[398363660,1765559006044,-1650.63,0.00041643,120]
[398363661,1765559006081,-504.90380682,0.00041643,120]
[398363662,1765559006115,-500.0,0.00041643,120]
[398363663,1765559006151,-500.0,0.00041643,120]
[398363664,1765559006185,-503.85641225,0.00041643,120]
[398363665,1765559006222,-500.0,0.00041643,120]
[398363666,1765559006259,-930.56,0.00041643,120]
[398363667,1765559006296,-500.0,0.00041643,30]
[398363668,1765559006331,-500.0,0.00041643,120]
[398363669,1765559006367,-500.0,0.00041643,120]
[398363670,1765559006404,-500.0,0.00041643,120]
[398363671,1765559006441,-500.0,0.00041643,120]
[398363672,1765559006479,-500.0,0.00041643,120]
[398363673,1765559006514,-500.0,0.00041643,120]
[398363674,1765559006555,-500.0,0.00041643,120]
[398363675,1765559006590,-500.0,0.00041643,120]
[398363676,1765559006625,-475.17142236,0.00041643,120]
[398363677,1765559006659,-786.96,0.00041643,120]
[398363678,1765559006693,-500.0,0.00041643,120]
[398363679,1765559006727,-500.0,0.00041643,120]
[398363680,1765559006764,-680.52,0.00041643,120]
[398363681,1765559006799,-1363.67,0.00041643,120]
[398363682,1765559006833,-568.22,0.00041643,120]
[398363683,1765559006865,-640.61,0.00041643,120]
[398363684,1765559006900,-500.0,0.00041643,120]
[398363685,1765559006933,-500.0,0.00041643,120]
[398363686,1765559006967,-3576.85,0.00041643,120]
[398363687,1765559007000,-1111.81,0.00041643,120]
[398363688,1765559007033,-500.0,0.00041643,120]
[398363689,1765559007066,-2771.73,0.00041643,120]
[398363690,1765559007099,-500.0,0.00041643,120]
[398363691,1765559007133,-500.41810723,0.00041643,120]
[398363692,1765559007168,-1619.86,0.00041643,120]
[398363693,1765559007203,-703.66,0.00041643,120]
[398363694,1765559007240,-500.0,0.00041643,120]
[398363695,1765559007277,-501.54809491,0.00041643,120]
[398363696,1765559007317,-533.28,0.00041643,120]
[398363697,1765559007353,-500.0,0.00041643,120]
[398363698,1765559007390,-4324.0,0.00041643,120]
[398363699,1765559007427,-500.0,0.00041643,120]
[398363700,1765559007464,-567.69,0.00041643,120]
[398363701,1765559007500,-500.0,0.00041643,120]
[398363702,1765559007536,-500.0,0.00041643,120]
[398363703,1765559007573,-1959.4,0.00041643,120]
[398363704,1765559007613,-1644.61,0.00041643,120]
[398363705,1765559007652,-654.37,0.00041643,120]
[398363706,1765559007692,-1430.4,0.00041643,120]
[398363707,1765559007730,-500.0,0.00041643,120]
[398363708,1765559007769,-3645.83,0.00041643,120]
[398363709,1765559007806,-18345.83,0.00041643,120]
[398363710,1765559007843,-500.0,0.00041643,120]
[398363711,1765559007879,-695.56,0.00041643,120]
[398363712,1765559007914,-1875.84,0.00041643,120]
[398363713,1765559007948,-500.0,0.00041643,120]
[398363714,1765559007983,-500.0,0.00041643,120]
[398363715,1765559008020,-500.0,0.00041643,120]
[398363716,1765559008057,-500.0,0.00041643,120]
[398363717,1765559008094,-500.0,0.00041643,120]
[398363718,1765559008128,-670.85,0.00041643,120]
[398363719,1765559008161,-500.0,0.00041643,120]
[398363720,1765559008198,-500.0,0.00041643,120]
[398363721,1765559008233,-500.3534215,0.00041643,120]
[398363722,1765559008269,-586.35,0.00041643,60]
[398363723,1765559008305,-1226.93,0.00041643,120]
[398363724,1765559008344,-1515.34,0.00041643,120]
[398363725,1765559008384,-501.29783358,0.00041643,120]
[398363726,1765559008423,-500.0,0.00041643,120]
[398363727,1765559008460,-500.0,0.00041643,120]
[398363728,1765559008495,-500.0,0.00041643,120]
[398363729,1765559008530,-1085.27,0.00041643,120]
[398363730,1765559008568,-949.44,0.00041643,120]
[398363731,1765559008604,-4190.98,0.00041643,120]
[398363732,1765559008639,-11795.09,0.00041643,120]
[398363733,1765559008672,-1127.01,0.00041643,120]
[398363734,1765559008704,-500.0,0.00041643,120]
[398363735,1765559008738,-1439.87,0.00041643,120]
[398363736,1765559008774,-1422.48,0.00041643,120]
[398363737,1765559008806,-500.0,0.00041643,120]
[398363738,1765559008842,-500.0,0.00041643,120]